Cogmind - Beta 14 @@@ ROGUE MODE // 2024.10.07 @ 15:49:27 Player: anastasia Result: Destroyed self with Grenade Launcher Performance ------------- Evolutions (0) 0 Regions Visited (3) 600 Robots Destroyed (26) 130 Value Destroyed (669) 669 Prototype IDs (0) 0 Alien Tech Used (0) 0 Bonus (0) 0 TOTAL SCORE: 1399 Bonus ------- None Cogmind --------- Core Integrity 0/250 Matter 187/300 Energy 250/250 System Corruption 0% Temperature Cool (0) Movement Treading (160) Location -10/Subcaves Parts ------- > --- POWER (1) -------- Ion Engine > --- PROPULSION (2) --- Light Treads Spiked Treads > --- UTILITY (2) ------ Medium Storage Unit Power Shielding > --- WEAPON (2) ------- Grenade Launcher Grenade Launcher > --- INVENTORY (10) --- Light Nuclear Core Light Treads Light Armor Plating Makeshift Light Armor Plating Subdweller Laser Subdweller Beam Cannon Barrage Gun Battle Cannon Scrap Shield Fragment (45) Peak State ------------ > --- POWER ------------ Ion Engine > --- PROPULSION ------- Light Treads Spiked Treads > --- UTILITY ---------- Medium Storage Unit Power Shielding > --- WEAPON ----------- Subdweller Laser Barrage Gun > --- INVENTORY -------- Light Nuclear Core Light Treads Light Armor Plating Makeshift Light Armor Plating Subdweller Beam Cannon Battle Cannon Grenade Launcher Grenade Launcher Scrap Shield Fragment [Rating: 12] Favorites ----------- Power Ion Engine Engine Ion Engine Power Core Light Nuclear Core Propulsion Light Treads Treads Light Treads Utility Power Shielding Storage Medium Storage Unit Protection Power Shielding Weapon Light Assault Rifle Energy Gun Subdweller Laser Energy Cannon Beam Cannon Ballistic Gun Light Assault Rifle Ballistic Cannon Battle Cannon Launcher Grenade Launcher Build | -11 -10 -10 -10 ------- Run | Yrd Mat Min Sub Slots Evolved . | . . . . Power . | . . . . Propulsion . | . . . . Utility . | . . . . Weapon . | . . . . Parts Attached 33 | 6 7 5 15 Power 3 | 1 1 1 . Engine 2 | 1 . 1 . Core 1 | . 1 . . Reactor . | . . . . Propulsion 7 | 2 2 1 2 Treads 7 | 2 2 1 2 Leg . | . . . . Wheel . | . . . . Hover . | . . . . Flight . | . . . . Utility 3 | 1 1 1 . Device . | . . . . Storage 2 | 1 . 1 . Processor . | . . . . Hackware . | . . . . Protection 1 | . 1 . . Artifact . | . . . . Weapon 20 | 2 3 2 13 Energy Gun 3 | . . . 3 Energy Cannon 3 | . 1 1 1 Ballistic Gun 8 | 2 2 1 3 Ballistic Cannon 2 | . . . 2 Launcher 4 | . . . 4 Special Weapon . | . . . . Impact Weapon . | . . . . Slashing Weapon . | . . . . Piercing Weapon . | . . . . Special Melee Weapon . | . . . . Unidentified Prototypes . | . . . . Parts Lost 5 | . . 3 2 Power 1 | . . 1 . Propulsion 1 | . . 1 . Utility . | . . . . Weapon 3 | . . 1 2 Highest Loss Streak 3 | . . 3 2 To Critical Strikes . | . . . . Average Slot Usage (%) 98 | . 96 99 100 Engine 12 | . 10 12 14 Core 1 | . 3 1 . Treads 27 | . 28 27 28 Storage 14 | . 14 14 14 Protection 12 | . 10 14 14 Energy Gun 1 | . . . 5 Energy Cannon 7 | . . 14 9 Ballistic Gun 17 | . 27 14 8 Peak Build Rating 12 | 6 10 10 12 Average Rating 7 | 4 7 7 9 On Entrance 5 | . 6 10 7 Naked Turns . | . . . . Heaviest Build 23 | 11 16 20 23 Greatest Support 40 | 40 40 40 40 Greatest Overweight (x) . | . . . . Average Overweight (x) . | . . . . Largest Inventory Capacity 10 | 8 8 10 10 Average Capacity 9 | 6 8 9 10 Most Carried 10 | 1 8 8 10 Average Carried 5 | . 4 5 7 Final Capacity 10 | 8 8 10 10 Final Carried 9 | 1 8 5 9 Class Distribution -------------------- 100% | Mutant Dominant Class ---------------- Mutant | -10/Materials Mutant | -10/Mines Mutant | -10/Subcaves Resources | -11 -10 -10 -10 ----------- Run | Yrd Mat Min Sub Matter Collected 803 | 187 319 138 159 Remotely . | . . . . Salvage Created 763 | . 340 241 182 Parts 44 | . 19 10 15 Haulers Intercepted . | . . . . Recyclers Shooed 1 | . . 1 . Parts Field Recycled . | . . . . Retrieved Matter . | . . . . Parts Self-Destructed 9 | . . . 9 Prevented . | . . . . Kills | -11 -10 -10 -10 ------- Run | Yrd Mat Min Sub Combat Hostiles Destroyed 24 | . 9 7 8 Guns 15 | . 9 4 2 Cannons 4 | . . 3 1 AOE 5 | . . . 5 Classes Destroyed 5 | . 4 . 1 Worker 1 | . 1 . . Watcher 1 | . 1 . . Swarmer 10 | . 3 3 4 Grunt 10 | . 6 4 . Subdweller 4 | . . . 4 Best Kill Streak 4 | . 3 3 4 Combat Bots Only 4 | . 3 3 4 Max Kills in Single Turn 4 | . 1 1 4 Gunslinging . | . . . . Exploded 4 | . . . 4 Melee . | . . . . Uniques/NPCs Destroyed . | . . . . Combat | -11 -10 -10 -10 -------- Run | Yrd Mat Min Sub Hostile Shots Fired 150 | . 55 47 48 Missed 38 | . 18 8 12 Damage Taken 1706 | . 442 505 759 Core 255 | . 39 41 175 Absorbed by Shields . | . . . . Redirected to Shielding 30 | . 8 21 1 Core Remaining (%) 100 | 100 . . . Volleys Fired 118 | . 48 27 43 Largest 2 | . 2 2 2 Hottest 110 | . 40 80 110 Shots Fired 213 | . 96 54 63 Gun 163 | . 96 27 40 Cannon 40 | . . 27 13 Launcher 10 | . . . 10 Special . | . . . . Kinetic 139 | . 96 27 16 Thermal 61 | . . 27 34 Explosive 10 | . . . 10 Electromagnetic 3 | . . . 3 Robot Hit Streak 19 | . 10 10 19 Robot Miss Streak 4 | . 4 4 2 Penetration Max . | . . . . Secondary Targets 2 | . 2 . . Max Gunslinging Chain 1 | . 1 . . Shots Hit Robots 123 | . 60 35 28 Core Hits 47 | . 21 12 14 Critical Kills . | . . . . Critical Parts Destroyed . | . . . . Critical Strikes . | . . . . Melee Attacks . | . . . . Impact . | . . . . Slashing . | . . . . Piercing . | . . . . Sneak Attacks . | . . . . Combat Hostiles . | . . . . Follow-up Attacks . | . . . . Damage Inflicted 1979 | . 664 488 827 Guns 1026 | . 664 196 166 Cannons 513 | . . 279 234 Explosions 427 | . . . 427 Melee . | . . . . Ramming 13 | . . 13 . Kinetic 992 | . 664 196 132 Thermal 509 | . . 279 230 Explosive 427 | . . . 427 Electromagnetic 38 | . . . 38 Impact . | . . . . Slashing . | . . . . Piercing . | . . . . Highest Corruption . | . . . . Average Corruption . | . . . . Corruption Purged . | . . . . Corruption Blocked . | . . . . Overload Shots . | . . . . Overflow Damage . | . . . . Projectiles . | . . . . Explosions . | . . . . Melee . | . . . . Knockbacks 1 | . . . 1 Impact . | . . . . Kinetic 1 | . . . 1 Secondary . | . . . . Self-Inflicted Damage 55 | . . . 55 Shots 2 | . . . 2 Rammed 3 | . . 3 . Targets Rammed 3 | . . 3 . Kicked . | . . . . Crushed . | . . . . Highest Temperature 264 | . 18 264 12 Average Temperature 89 | . 6 126 6 Received Heat Transfer 645 | . 228 255 162 Effects 1 | . . 1 . Energy Bleed 1 | . . 1 . Siege Activations . | . . . . Robots Corrupted . | . . . . Combat Hostiles . | . . . . Parts Fried . | . . . . Impact Corruptions . | . . . . Robots Melted . | . . . . Combat Hostiles . | . . . . Parts Melted 3 | . . 1 2 Heat Transferred 1061 | . . 592 469 Parts Sabotaged . | . . . . Parts Stolen . | . . . . Parts Stripped . | . . . . Power Chain Reactions . | . . . . Alert | -11 -10 -10 -10 ------- Run | Yrd Mat Min Sub Peak Influence 157 | . 157 100 . Initial 8 | . . 8 . Average 48 | . 41 60 . Maximum Alert Level . | . . . . Low Security (%) 100 | 100 100 100 . Level 1 . | . . . . Level 2 . | . . . . Level 3 . | . . . . Level 4 . | . . . . Level 5 . | . . . . High Security . | . . . . Max Security . | . . . . Squads Dispatched 1 | . 1 . . Investigation . | . . . . Extermination . | . . . . Reinforcement 1 | . 1 . . Assault . | . . . . Garrison . | . . . . Intercept . | . . . . Searches Triggered . | . . . . Construction Impeded . | . . . . Haulers Reinforced . | . . . . Active Scanning Responses . | . . . . Cargo Convoy Interrupts . | . . . . Stealth | -11 -10 -10 -10 --------- Run | Yrd Mat Min Sub Distress Signals 1 | . 1 . . Communications Jammed . | . . . . Distress Signals . | . . . . Times Spotted 36 | . 17 8 11 Peak Tracking Total 6 | . 4 3 6 Tactical Retreats 2 | . . 1 1 Traps | -11 -10 -10 -10 ------- Run | Yrd Mat Min Sub Traps Triggered 2 | . . . 2 Indirectly . | . . . . Trap Hack Attempts . | . . . . Triggered . | . . . . Disarmed . | . . . . Reprogrammed . | . . . . Reused . | . . . . Traps Extracted . | . . . . Installed . | . . . . Triggered . | . . . . Machines | -11 -10 -10 -10 ---------- Run | Yrd Mat Min Sub Machines Disabled 3 | . . . 3 Max in Single Turn 2 | . . . 2 Machines Repaired . | . . . . Machines Dismantled . | . . . . Machines Sabotaged . | . . . . Overloaded Fab Kills . | . . . . Hacking | -11 -10 -10 -10 --------- Run | Yrd Mat Min Sub Machines Accessed 3 | . 3 . . Terminals 3 | . 3 . . Fabricators . | . . . . Repair Stations . | . . . . Recycling Units . | . . . . Scanalyzers . | . . . . Garrison Access . | . . . . Total Hacks 5 | . 5 . . Successful 4 | . 4 . . Failed 1 | . 1 . . Catastrophic . | . . . . Database Lockouts . | . . . . Manual . | . . . . Terminals 5 | . 5 . . Fabricators . | . . . . Repair Stations . | . . . . Recycling Units . | . . . . Scanalyzers . | . . . . Garrison Access . | . . . . Terminal Hacks 4 | . 4 . . Branch Access Points 1 | . 1 . . Locate Traps 2 | . 2 . . Zone Layout 1 | . 1 . . Fabricator Hacks . | . . . . Repair Station Hacks . | . . . . Recycling Unit Hacks . | . . . . Scanalyzer . | . . . . Garrison Access Hacks . | . . . . Unauthorized Hacks . | . . . . Terminals . | . . . . Fabricators . | . . . . Repair Stations . | . . . . Recycling Units . | . . . . Scanalyzers . | . . . . Garrison Access . | . . . . Data Cores Recovered . | . . . . Used . | . . . . Hacking Detections 1 | . 1 . . Full Trace Events . | . . . . Feedback Events . | . . . . Feedback Blocked . | . . . . Robot Schematics Acquired . | . . . . Robots Built . | . . . . Authchips . | . . . . Time . | . . . . Total Robot Build Rating . | . . . . Part Schematics Acquired . | . . . . Parts Built . | . . . . Authchips . | . . . . Time . | . . . . Total Part Build Rating . | . . . . Parts Repaired . | . . . . Time . | . . . . Parts Recycled . | . . . . Recycled Matter . | . . . . Retrieved Matter . | . . . . Retrieved Components . | . . . . Parts Scanalyzed . | . . . . Part Schematics Acquired . | . . . . Parts Damaged . | . . . . Bothacking | -11 -10 -10 -10 ------------ Run | Yrd Mat Min Sub Used RIF Installer . | . . . . Robots Hacked . | . . . . Non-combat . | . . . . Combat . | . . . . Robot Hacks Applied . | . . . . Relay Couplers Released . | . . . . Fabnet Peak Effective % . | . . . . Robots Rewired . | . . . . Allies Hacked . | . . . . Hacks Repelled . | . . . . Allies | -11 -10 -10 -10 -------- Run | Yrd Mat Min Sub Total Allies . | . . . . Largest Group . | . . . . Highest-Rated Group . | . . . . Highest-Rated Ally . | . . . . Total Orders . | . . . . Ally Attacks . | . . . . Total Damage . | . . . . Kills . | . . . . Allies Corrupted . | . . . . Allies Melted . | . . . . Intel | -11 -10 -10 -10 ------- Run | Yrd Mat Min Sub Robot Analysis Total . | . . . . Derelict Logs Recovered 4 | . . 3 1 Drone Launches . | . . . . Drone Recoveries . | . . . . Exploration | -11 -10 -10 -10 ------------- Run | Yrd Mat Min Sub Turns Passed 3017 | 58 1101 839 1019 Spaces Moved 1638 | 34 588 465 551 Core 5 | 5 . . . Treads 1633 | 29 588 465 551 Legs . | . . . . Wheels . | . . . . Hover . | . . . . Flight . | . . . . Fastest Speed 50 | 50 160 160 160 Average Speed 159 | 143 160 160 160 Slowest Speed 160 | 160 160 160 160 Overloaded Moves . | . . . . Propulsion Burnouts . | . . . . Robots Hopped . | . . . . Cave-ins Triggered . | . . . . Exploration Rate (%) 53 | 3 83 95 32 Regions Visited 3 Branch Regions 2 Pre-discovered Areas 2 | . . 2 . Known Exits Taken 1 | . 1 . . Unknown Exits Taken 2 | 1 . 1 . Scrap Searched 11 | . . 1 10 Spaces Dug . | . . . . Terrain Destroyed 39 | . . . 39 Melee . | . . . . Projectile . | . . . . AOE 39 | . . . 39 Terrain Rammed . | . . . . Walls Destroyed . | . . . . Machines Disabled . | . . . . Actions | -11 -10 -10 -10 --------- Run | Yrd Mat Min Sub Total 1830 | 40 661 505 624 Wait 9 | . . 4 5 Move 1635 | 33 587 464 551 Hop . | . . . . Pick Up 23 | 1 13 1 8 Fast Attach 6 | 6 . . . Attach 9 | . 2 3 4 Detach . | . . . . Swap 18 | . 5 2 11 Drop 9 | . 6 1 2 Fire 118 | . 48 27 43 Melee . | . . . . Ram . | . . . . Kick . | . . . . Crush 3 | . . 3 . Escape Stasis . | . . . . Rewire . | . . . . Trap . | . . . . Miscellaneous . | . . . . Route ------- -11/Scrapyard -10/Materials (discovered 3 exits: [*Mat x2] / *Min) -10/Mines (discovered 3 exits: [*Mat x2] / [*Sub]) -10/Subcaves (discovered 2 exits: [*Mat] / [*Rec]) History --------- Turn | Location | Event 2 | -11/Scrapyard | Met Revision 17 9 | -11/Scrapyard | Discovered new exit (range 15) 59 | -11/Scrapyard | Entered Materials 324 | -10/Materials | Build established: Mutant 693 | -10/Materials | Discovered new exit (range 14) 900 | -10/Materials | Identified exit to Mines 1011 | -10/Materials | Discovered new exit (range 4) 1160 | -10/Materials | Entered Mines 1182 | -10/Mines | Met a Derelict bent on vengeance 1296 | -10/Mines | Lost 3 parts (1p1n1w) 1306 | -10/Mines | Learned location of Storage (-8) 1381 | -10/Mines | Discovered new exit (range 5) 1445 | -10/Mines | Learned Materials emergency access door positions 1868 | -10/Mines | Discovered new exit (range 6) 1876 | -10/Mines | Learned Materials stockpile data 1994 | -10/Mines | Discovered new exit (range 4) 1999 | -10/Mines | Entered Subcaves 2020 | -10/Subcaves | Discovered new exit (range 12) 2060 | -10/Subcaves | Core integrity fell below 50% 2256 | -10/Subcaves | A swath of the cavern ceiling suddenly collapsed 2644 | -10/Subcaves | Learned Materials security intel 2676 | -10/Subcaves | Core integrity fell below 20% 2774 | -10/Subcaves | Disturbed a concealed Subdweller 3009 | -10/Subcaves | Discovered new exit (range 14) 3018 | -10/Subcaves | Destroyed self with Grenade Launcher Last Messages --------------- 02718_ Dropped Lgt. Assault Rifle. 02721_ Acquired 20 matter. 02774_ VZ-49O(R) knocked back. 02785_ VZ-49O(R) destroyed. 02795_ The unstable cave ceiling collapses. 02803_ Searching scrap... 02803_ Found Mak. System Shield. 02803_ Found 32 Matter. 02804_ Acquired 32 matter. 02809_ Acquired 6 matter. 02810_ The unstable cave ceiling collapses. 02810_ Scrap Shield Fragment crushed. 02857_ The unstable cave ceiling collapses. 03004_ S-10 Pest destroyed. 03004_ Machine disabled. 03004_ S-10 Pest destroyed. 03008_ Flight Unit fries itself beyond repair. 03009_ EXIT=FOUND 03010_ Machine disabled. 03018_ Flight Unit fries itself beyond repair. Map ----- +----------------------------------------------------+ | ?????????????????????????????????????????????????? | | ?????????????????????????????????????????????????? | | ??????????????????????????????????########???????? | | ????????????????????????????????###" "###?????? | | ???????????????????????????????##" ""##????? | | ???????????????????????????????#" *=* "#????? | | ??????????????????????????????##" [%%%[ ##???? | | ??????????????????????????????#" %#%*" " #???? | | ??????????????????????????????# [%%% "#???? | | ?????????????????????????????##" ! ||[ "#???? | | ?????????????????????????????# ! ##### "#???? | | ?????????????????????????????# " ! ""#???? | | ?????????????????????????????### ## "##???? | | ???????????????????????????????##"""## "####????? | | ??????????????????????????????#######" ######??? | | ????????????????????????????### ### " ## ##?# | | ??????????????????????####### ### | | ??????????????????????# # # ## | | ?????????????????????## ## | | ?????????????????????# ## ### | | ????????????????????## ### ## | | ????????????????????# # ### ## ## ## | | ????????????????????# ###### #### ### ### | | ????????????????????# #### #### ####?## ## | | ????????????????????# ## ## #####??# # | | ????????????????????## @ ## ## ##?### # | | ?????????????????????# ## ##??# | | ???????????????????# = ### # # #?### | | ??????????????????# ## # #### # #?# | | ???????????????? ?#### #??# # #### ### | | ????????????? ?????? ### # ## #?? | | ???????????? # ## ?????? # # ### #??? | | ???????????? ?#??#??????? ## # #??? | | ??????????????????????????? #??? | | ??????????????????????????? t #### | | ??????????????????????????? < & ## ## | | ??????????????????????????? #< ########## | | ???????????????????????????<##### ###????????? | | ????????????????????????????#???# " "#??????????? | | ????????????????????????????????## #??????????# | | ?????????????????????????????????######?????????## | | ????????????????????????????????????????????????# | | ????????????????????????????????????????????##### | | ????????????????????????????????????????????# ## | | ????????????????????????????????????????????# | | ????????????????????????????????????????????# | | ????????????????????????????????????????????# ## | | ????????????????????????????????????????????# #? | | ????????????????????????????????????????????## ##? | | ?????????????????????????????????????????????###?? | +----------------------------------------------------+ Best States ------------- Heat Dissipation 25 Energy Generation 14 Energy Capacity 250 Matter Stores 300 Matter Capacity 300 Sight Range 16 Terrain Scan Density 10 Power Shielding 33 Evasion (%) 40 Recoil Reduction 2 Item Schematics ----------------- None Robot Schematics ------------------ None Fabricated ------------ Nothing Alien Tech Used ----------------- None Achievements -------------- None Challenges ------------ None Game ------ Seed BottomlessHardenedFlail Manual? 0 Play Time 00:18:28 Cumulative 13.1 hours Start 2024.10.07 @ 15:33:17 End 2024.10.07 @ 15:49:27 Sessions 1 Manual Loads 0 Difficulty Rogue Special Mode None Game No. 23 Rogue 15 Adventurer 8 Explorer 0 Win Type - Total 0 Types 0/0/0/0/0/0/0/0/0 Lore% 11 Gallery% 19 Achievement% 18 Wizard Run 0 Options --------- Layout 1 ASCII 0 Keyboard 0 Movement Mouse Keybinds 0 Fullscreen 1 Font 32/SmallcapsGlow Map View 50x35 Zoom Use 0% Tactical HUD 1 Map Filters NONE Filters NONE Steam 1 RUN: 22112399-cfa7-44a2-8d46-2da21c6318d8